{"text_format":"2","workbook":"xlsx","n_sheets":4,"sheets":["Záradék","Fejezet összesítő","01  Gáz","02  Fűtés"],"not_rendered":{"charts":0,"images":0,"macros":0,"external_links":0,"defined_names":0,"comments":0,"pivot_tables":0},"unopened":[],"bounds":{"document_bytes":16777216,"sheet_cells":100000,"run_cost":"one","rows_first":2000,"rows_last":500,"rows_between":2000,"halvings":0,"cell_chars":16384,"cell_head_chars":4096},"cells_cut":0,"cells_raw":0,"read":"whole","date_system":"1900"}

{"sheet":"Záradék","index":0,"n_rows":32,"n_cols":4,"rows_kept":32,"cut":false,"hidden":false,"merged":[[0,0,0,3],[1,0,1,3],[2,0,2,3],[3,0,3,3],[4,0,4,3],[27,2,27,3],[31,1,31,2],[5,0,5,3],[21,0,21,3],[25,2,25,3],[26,2,26,3],[8,2,8,3],[9,2,9,3],[10,2,10,3],[11,2,11,3],[12,2,12,3],[16,2,16,3],[17,2,17,3],[18,2,18,3],[19,0,19,3]]}
["SZEGEDI TUDOMÁNYEGYETEM"]
[]
[]
[]
[]
[]
[null,null,"Kelt:"]
[]
["Szegedi Tudományegyetem                ",null,"Készítette:"]
["Műszaki Igazgatóság                    ",null,"Cégnév"]
["Műszaki Üzemeltetési Részleg         ",null,"Székhely"]
["6725 Szeged, Tisza Lajos krt. 107.     ",null,"Kapcsolattartó"]
["                                       ",null,"Elérhetőség"]
["                                       ",null,"                                       "]
["A munka tárgya:                       ",null,"                                       "]
["Keresztény Roma Szakkollégium fűtési rendszerének tervek szerinti felújítása_Gépészeti munkák"]
[]
["                                                                              "]
[]
["Költségvetés főösszesítő"]
[]
[]
["Megnevezés",null,"Anyagköltség","Díjköltség"]
["1. Építmény közvetlen költségei",null,{"$f":"ROUND(SUM('Fejezet összesítő'!B2:B3),0)","v":0},{"$f":"ROUND(SUM('Fejezet összesítő'!C2:C3),0)","v":0}]
["1.1 Közvetlen önköltség összesen",null,{"$f":"ROUND(C24,0)","v":0},{"$f":"ROUND(D24,0)","v":0}]
["2.1 ÁFA vetítési alap",null,{"$f":"ROUND(C25+D25,0)","v":0}]
["2.2 Áfa",0.27,{"$f":"ROUND(C26*B27,0)","v":0}]
["3.  A munka ára",null,{"$f":"ROUND(C26+C27,0)","v":0}]
[]
[]
[]
[null,"Aláírás"]

{"sheet":"Fejezet összesítő","index":1,"n_rows":4,"n_cols":3,"rows_kept":4,"cut":false,"hidden":false,"merged":[]}
["Fejezetek megnevezése","Anyag összege","Díj összege"]
["01  Gáz",{"$f":"'01  Gáz'!H37","v":0},{"$f":"'01  Gáz'!I37","v":0}]
["02  Fűtés",{"$f":"'02  Fűtés'!H48","v":0},{"$f":"'02  Fűtés'!I48","v":0}]
["Összesen:",{"$f":"ROUND(SUM(B2:B3),0)","v":0},{"$f":"ROUND(SUM(C2:C3), 0)","v":0}]

{"sheet":"01  Gáz","index":2,"n_rows":37,"n_cols":9,"rows_kept":37,"cut":false,"hidden":false,"merged":[[1,0,1,5],[10,0,10,5],[14,0,14,5],[18,0,18,5],[22,0,22,5]]}
["Ssz.","Tételszám","Tétel szövege","Menny.","Egység","Anyag egységár","Díj egységre","Anyag összesen","Díj összesen"]
["19 Költségtérítések"]
[1,"19-010-1.21.1","Általános teendők, befejezés szakaszában, átadás - átvétel, jegyzőkönyv elkészítése",1,"db",0,0,{"$f":"ROUND(D3*F3, 0)","v":0},{"$f":"ROUND(D3*G3, 0)","v":0}]
[2,"19-010-1.21.2","Általános teendők, befejezés szakaszában, megvalósulási tervdokumentáció elkészítése",1,"db",0,0,0,0]
[3,"19-010-1.21.3","Általános teendők, befejezés szakaszában, érintésvédelmi felülvizsgálat készítése",1,"db",0,0,0,0]
[4,"19-010-1.21.4","Általános teendők, befejezés szakaszában, kéményvizsgálati jegyzőkönyv készítése",2,"db",0,0,0,0]
[5,"19-010-1.21.5","Általános teendők, befejezés szakaszában, gázkazán garanciális beüzemelése",2,"db",0,0,0,0]
[6,"19-010-1.21.6","Általános teendők, befejezés szakaszában, szolgáltató általi gázóracsere, G16-ról G10-es órára (szolgáltatónak fizetendő)",1,"db",0,0,0,0]
[7,"19-010-1.21.7","Általános teendők, befejezés szakaszában, tervezői átvétel",1,"db",0,0,0,0]
[8,"19-010-1.21.8","Általános teendők, befejezés szakaszában, belső gázvezetékhálózat nyomáspróbája",1,"db",0,0,0,0]
["37 Égéstermék-elvezető rendszerek"]
[9,"37-000-1.3","Kémények bontása, előregyártott elemekből készült kémények bontása, épületen belül",12,"m³",0,0,{"$f":"ROUND(D12*F12, 0)","v":0},{"$f":"ROUND(D12*G12, 0)","v":0}]
[10,"37-000-1.4","Kémények bontása, előregyártott elemekből készült kémények bontása, tetőn kívül",4.5,"m",0,0,{"$f":"ROUND(D13*F13, 0)","v":0},{"$f":"ROUND(D13*G13, 0)","v":0}]
[11,"37-000-1.5","Tetőjavítás (kéménybontás után)",9,"m²",0,0,{"$f":"ROUND(D14*F14, 0)","v":0},{"$f":"ROUND(D14*G14, 0)","v":0}]
["47 Felületképzés"]
[12,"47-021-12.4.1-0419523","Korróziógátló alapozás cső és regisztercső felületén (NÁ 80-ig), függesztőn és tartóvason, sormosdó állványzaton, műgyanta kötőanyagú, oldószertartalmú festékkel POLI-FARBE Cellkolor univerzális korróziógátló alapozó fehér, szürke, oxid-vörös",11,"m",0,0,{"$f":"ROUND(D16*F16, 0)","v":0},{"$f":"ROUND(D16*G16, 0)","v":0}]
[13,"47-021-21.4.1-0160024","Acélfelületek közbenső festése cső és regisztercső felületén (NÁ 80-ig), függesztőn és tartóvason, sormosdó állványzaton műgyanta kötőanyagú, oldószeres festékkel POLI-FARBE Cellkolor oldószeres magasfényű zománcfesték, RAL 9003 fehér színben",11,"m",0,0,{"$f":"ROUND(D17*F17, 0)","v":0},{"$f":"ROUND(D17*G17, 0)","v":0}]
[14,"47-021-31.4.1-0160025","Acélfelületek átvonó festése cső és regisztercső felületén (NÁ 80-ig), függesztőn és tartóvason, sormosdó állványzaton műgyanta kötőanyagú, oldószeres festékkel POLI-FARBE Cellkolor oldószeres magasfényű zománcfesték, többféle színben",11,"m",0,0,{"$f":"ROUND(D18*F18, 0)","v":0},{"$f":"ROUND(D18*G18, 0)","v":0}]
["81 Épületgépészeti csővezeték szerelése"]
[15,"81-000-1.1.1","Csővezetékek bontása, horganyzott vagy fekete acélcsövek tartószerkezetről, vagy padlócsatornából lángvágással, deponálással, DN 50 méretig",5,"m",0,0,{"$f":"ROUND(D20*F20, 0)","v":0},{"$f":"ROUND(D20*G20, 0)","v":0}]
[16,"81-004-1.4.1.1.1.2-0110107","Fűtési vezeték, Fekete acélcső szerelése, hegesztett kötésekkel, tartószerkezettel, szakaszos nyomáspróbával, szabadon, horonyba vagy padlócsatornába, irányváltozás csőhajlítással, DN 15 Normálfalú, varratnélküli fekete acélcső, sima, A 37X, 1/2\", 21,3x2,6mm",5,"m",0,0,{"$f":"ROUND(D21*F21, 0)","v":0},{"$f":"ROUND(D21*G21, 0)","v":0}]
[17,"81-004-1.4.1.1.1.5-0110116","Fűtési vezeték, Fekete acélcső szerelése, hegesztett kötésekkel, tartószerkezettel, szakaszos nyomáspróbával, szabadon, horonyba vagy padlócsatornába, irányváltozás csőhajlítással, DN 32 Normálfalú, varratnélküli fekete acélcső, sima, A 37X  5/4\", 42,4x3,2mm",6,"m",0,0,{"$f":"ROUND(D22*F22, 0)","v":0},{"$f":"ROUND(D22*G22, 0)","v":0}]
["82 Épületgépészeti szerelvények és berendezések szerelése"]
[18,"82-000-4.2.1.1","Gáz- és fűtésszerelési berendezési tárgyak leszerelése, fűtésszerelési berendezési tárgyak kazánok 60 kW-ig",3,"db",0,0,{"$f":"ROUND(D24*F24, 0)","v":0},{"$f":"ROUND(D24*G24, 0)","v":0}]
[19,"82-000-4.2.4","Gáz- és fűtésszerelési berendezési tárgyak leszerelése, fűtésszerelési berendezési tárgyak szerelvények bontása",6,"db",0,0,0,0]
[20,"82-001-6.2.2-0145641","Egyoldalon menetes szerelvény elhelyezése, külső vagy belső menettel, illetve hollandival csatlakoztatva DN 15 belobbanásgátló gomba (kiszellőző gomba) 1/2\"",1,"db",0,0,0,0]
[21,"82-001-7.2.2-0133075","Kétoldalon menetes, szorító- vagy roppantógyűrűs szerelvény elhelyezése, külső vagy belső menettel, illetve hollandival csatlakoztatva DN 15 gömbcsap, víz- és gázfőcsap MOFÉM Flexum gáz gömbcsap, 1/2\"BB névleges nikkelezett, Csz: 113-0065-40",1,"db",0,0,0,0]
[22,"82-001-7.4.2-0133081","Kétoldalon menetes, szorító- vagy roppantógyűrűs szerelvény elhelyezése, külső vagy belső menettel, illetve hollandival csatlakoztatva DN 25 gömbcsap, víz- és gázfőcsap MOFÉM Flexum gáz gömbcsap, 1\"BB, nikkelezett, Csz: 113-0069-40",2,"db",0,0,0,0]
[23,"82-001-7.5.2-0184564","Kétoldalon menetes, szorító- vagy roppantógyűrűs szerelvény elhelyezése, külső vagy belső menettel, illetve hollandival csatlakoztatva DN 32 gömbcsap, víz- és gázfőcsap MOFÉM Flexum gáz gömbcsap, 5/4\"BB, nikkelezett, Csz: 113-0076-00",3,"db",0,0,0,0]
[24,"82-005-1.1.1","Föld- vagy PB gáz tüzelésű, melegvízüzemű, acéllemez kazán elhelyezése és bekötése, 40 kW teljesítményig, Viessmann Vitodens 100-W kondenzációs fali fűtő gázkazán; Q=32kW; Vb=3,69m²/h",2,"db",0,0,0,0]
[25,"82-016-14.1.1-0111111","Füstgázelvezetés (csövek, idomok) elhelyezése zárt égésterű, fűtési és/vagy használati melegvízkészítő kazánok részére, felszerelve, szerelőkőműves munka nélkül, füstcsövek, 60/60, 60/100 mm Viessmann égéstermékelvezetés, PPs/Alu, indító idom, 60/100, kazán tartozék",2,"db",0,0,0,0]
[26,"82-016-14.1.1-0222222","Füstgázelvezetés (csövek, idomok) elhelyezése zárt égésterű, fűtési és/vagy használati melegvízkészítő kazánok részére, felszerelve, szerelőkőműves munka nélkül, füstcsövek, 60/60, 60/100 mm Viessmann égéstermékelvezetés, PPs/Alu, 45°-os ívidom, 60/100, 7373227",4,"db",0,0,0,0]
[27,"82-016-14.1.1-0333333","Füstgázelvezetés (csövek, idomok) elhelyezése zárt égésterű, fűtési és/vagy használati melegvízkészítő kazánok részére, felszerelve, szerelőkőműves munka nélkül, füstcsövek, 60/60, 60/100 mm Viessmann égéstermékelvezetés, PPs/Alu, ellenőrző egyenes idom, 60/100, 7373228",2,"db",0,0,0,0]
[28,"82-016-14.1.1-0444444","Füstgázelvezetés (csövek, idomok) elhelyezése zárt égésterű, fűtési és/vagy használati melegvízkészítő kazánok részére, felszerelve, szerelőkőműves munka nélkül, füstcsövek, 60/60, 60/100 mm Viessmann égéstermékelvezetés, PPs/Alu, egyenes cső, 60/100, 7373223",2,"db",0,0,0,0]
[29,"82-016-14.1.1-0555555","Füstgázelvezetés (csövek, idomok) elhelyezése zárt égésterű, fűtési és/vagy használati melegvízkészítő kazánok részére, felszerelve, szerelőkőműves munka nélkül, füstcsövek, 60/60, 60/100 mm Viessmann égéstermékelvezetés, PPs/Alu, tető átvezető idom, 60/100, 7373230",2,"db",0,0,0,0]
[30,"82-016-14.1.1-0666666","Füstgázelvezetés (csövek, idomok) elhelyezése zárt égésterű, fűtési és/vagy használati melegvízkészítő kazánok részére, felszerelve, szerelőkőműves munka nélkül, füstcsövek, 60/60, 60/100 mm Viessmann égéstermékelvezetés, PPs/Alu, ferde tető borítás, 7452499",2,"db",0,0,0,0]
[null,null,"Fejezet összesen:",{"$nulls":4},{"$f":"ROUND(SUM(H2:H36),0)","v":0},{"$f":"ROUND(SUM(I2:I36),0)","v":0}]

{"sheet":"02  Fűtés","index":3,"n_rows":48,"n_cols":9,"rows_kept":48,"cut":false,"hidden":false,"merged":[[1,0,1,5],[8,0,8,5],[12,0,12,5],[18,0,18,5]]}
["Ssz.","Tételszám","Tétel szövege","Menny.","Egység","Anyag egységár","Díj egységre","Anyag összesen","Díj összesen"]
["19 Költségtérítések"]
[1,"19-010-1.21.1","Általános teendők, befejezés szakaszában, átadás - átvétel, jegyzőkönyv elkészítése",1,"db",0,0,{"$f":"ROUND(D3*F3, 0)","v":0},{"$f":"ROUND(D3*G3, 0)","v":0}]
[2,"19-010-1.21.2","Általános teendők, befejezés szakaszában, megvalósulási tervdokumentáció elkészítése",1,"db",0,0,0,0]
[3,"19-010-1.21.3","Általános teendők, befejezés szakaszában, fűtési rendszer nyomáspróbája",1,"db",0,0,0,0]
[4,"19-010-1.21.4","Általános teendők, befejezés szakaszában, fűtési rendszer beszabályozása",1,"db",0,0,0,0]
[5,"19-010-1.21.5","Általános teendők, befejezés szakaszában, SIEMENS időjáráskövető fűtésszabályozó készlet, Albatros2.1D beszabályozása",1,"db",0,0,0,0]
[6,"19-010-1.21.6","Általános teendők, befejezés szakaszában, csatlakozás meglévő fűtési rendszerre",1,"db",0,0,0,0]
["47 Felületképzés"]
[7,"47-021-12.4.1-0419523","Korróziógátló alapozás cső és regisztercső felületén (NÁ 80-ig), függesztőn és tartóvason, sormosdó állványzaton, műgyanta kötőanyagú, oldószertartalmú festékkel POLI-FARBE Cellkolor univerzális korróziógátló alapozó fehér, szürke, oxid-vörös",35,"m",0,0,{"$f":"ROUND(D10*F10, 0)","v":0},{"$f":"ROUND(D10*G10, 0)","v":0}]
[8,"47-021-21.4.1-0160024","Acélfelületek közbenső festése cső és regisztercső felületén (NÁ 80-ig), függesztőn és tartóvason, sormosdó állványzaton műgyanta kötőanyagú, oldószeres festékkel POLI-FARBE Cellkolor oldószeres magasfényű zománcfesték, RAL 9003 fehér színben",35,"m",0,0,{"$f":"ROUND(D11*F11, 0)","v":0},{"$f":"ROUND(D11*G11, 0)","v":0}]
[9,"47-021-31.4.1-0160025","Acélfelületek átvonó festése cső és regisztercső felületén (NÁ 80-ig), függesztőn és tartóvason, sormosdó állványzaton műgyanta kötőanyagú, oldószeres festékkel POLI-FARBE Cellkolor oldószeres magasfényű zománcfesték, többféle színben",35,"m",0,0,{"$f":"ROUND(D12*F12, 0)","v":0},{"$f":"ROUND(D12*G12, 0)","v":0}]
["81 Épületgépészeti csővezeték szerelése"]
[10,"81-000-1.1.1","Csővezetékek bontása, horganyzott vagy fekete acélcsövek tartószerkezetről, vagy padlócsatornából lángvágással, deponálással, DN 50 méretig",31,"m",0,0,{"$f":"ROUND(D14*F14, 0)","v":0},{"$f":"ROUND(D14*G14, 0)","v":0}]
[11,"81-002-3.1.1.1.1","PVC lefolyóvezeték szerelése, ragasztott kötésekkel, cső elhelyezése csőidomokkal, szakaszos tömörségi próbával, falhoronyba vagy padlócsatornába (horonyvésés külön tételben), DN 25",6,"m",0,0,{"$f":"ROUND(D15*F15, 0)","v":0},{"$f":"ROUND(D15*G15, 0)","v":0}]
[12,"81-004-1.4.1.1.2.1.1-0110116","Fűtési vezeték, Fekete acélcső szerelése, hegesztett kötésekkel, tartószerkezettel, szakaszos nyomáspróbával, szabadon, horonyba vagy padlócsatornába, irányváltozás csőívvel, csőátmérő DN 100 méretig, DN 32-40 Normálfalú, varratnélküli fekete acélcső, sima, A 37X  5/4\", 42,4x3,2mm + terv szerinti szigetelés",15,"m",0,0,{"$f":"ROUND(D16*F16, 0)","v":0},{"$f":"ROUND(D16*G16, 0)","v":0}]
[13,"81-004-1.5.1.1.1.1.3-0566263","Fűtési vezeték, Horganyzott szénacélcső szerelése, préselt csőkötésekkel, cső elhelyezése csőidomokkal, szakaszos nyomáspróbával, szabadon, horonyba vagy padlócsatornába, DN 12 - DN 50, DN 20 FixTrend Steel szénacél cső 22x1.5mm kívül horganyzott, 6m/szál, Cikkszám: EUT_TUCZE022 + terv szerinti szigetelés",5,"m",0,0,{"$f":"ROUND(D17*F17, 0)","v":0},{"$f":"ROUND(D17*G17, 0)","v":0}]
[14,"81-004-1.5.1.1.1.1.7-0566267","Fűtési vezeték, Horganyzott szénacélcső szerelése, préselt csőkötésekkel, cső elhelyezése csőidomokkal, szakaszos nyomáspróbával, szabadon, horonyba vagy padlócsatornába, DN 12 - DN 50, DN 50 FixTrend Steel szénacél cső 54x1.5mm kívül horganyzott, 6m/szál, Cikkszám: EUT_TUCZE054 + terv szerinti szigetelés",15,"m",0,0,{"$f":"ROUND(D18*F18, 0)","v":0},{"$f":"ROUND(D18*G18, 0)","v":0}]
["82 Épületgépészeti szerelvények és berendezések szerelése"]
[15,"82-001-7.2.1-0115542","Kétoldalon menetes, szorító- vagy roppantógyűrűs szerelvény elhelyezése, külső vagy belső menettel, illetve hollandival csatlakoztatva DN 15 szelepek, csappantyúk (szabályzó, fojtó-elzáró, beavatkozó) OVENTROP visszacsapó szelep, Viton tömítéssel, PN25, DN15, G 1/2\" bm., (0...+100)°C, nyitónyomás 40 mbar, kvs=3,80, vörösöntvény szelepházzal, 1072004",2,"db",0,0,{"$f":"ROUND(D20*F20, 0)","v":0},{"$f":"ROUND(D20*G20, 0)","v":0}]
[16,"82-001-7.2.2-0130525","Kétoldalon menetes, szorító- vagy roppantógyűrűs szerelvény elhelyezése, külső vagy belső menettel, illetve hollandival csatlakoztatva DN 15 gömbcsap, víz- és gázfőcsap MOFÉM kazántöltőcsap 1/2\" névleges méret 15 mm, sárgaréz, natúr, 16 bar, Csz: 113-0010-00",4,"db",0,0,0,0]
[17,"82-001-7.2.2-0130603","Kétoldalon menetes, szorító- vagy roppantógyűrűs szerelvény elhelyezése, külső vagy belső menettel, illetve hollandival csatlakoztatva DN 15 gömbcsap, víz- és gázfőcsap MOFÉM AHA gömbcsap 1/2\" bb. menettel, névleges méret 15 mm, sárgaréz, natúr, 16 bar, Csz: 113-0007-00",2,"db",0,0,0,0]
[18,"82-001-7.3.2-0130604","Kétoldalon menetes, szorító- vagy roppantógyűrűs szerelvény elhelyezése, külső vagy belső menettel, illetve hollandival csatlakoztatva DN 20 gömbcsap, víz- és gázfőcsap MOFÉM AHA gömbcsap 3/4\" bb. menettel, névleges méret 20 mm, sárgaréz, natúr, 16 bar, Csz: 113-0018-00",1,"db",0,0,0,0]
[19,"82-001-7.4.2-0130605","Kétoldalon menetes, szorító- vagy roppantógyűrűs szerelvény elhelyezése, külső vagy belső menettel, illetve hollandival csatlakoztatva DN 25 gömbcsap, víz- és gázfőcsap MOFÉM AHA gömbcsap 1\" bb. menettel, névleges méret 25 mm, sárgaréz, natúr, 16 bar, Csz: 113-0034-00",1,"db",0,0,0,0]
[20,"82-001-7.4.9-0343476","Kétoldalon menetes, szorító- vagy roppantógyűrűs szerelvény elhelyezése, külső vagy belső menettel, illetve hollandival csatlakoztatva DN 25 biztonsági szerelvény resideo - Braukmann membrános biztonsági szelep fűtési és solár rendszerekhez, p(megsz)=3bar, 200kW, 1\", belső menet, max 120°C, SM120-1B",1,"db",0,0,0,0]
[21,"82-001-7.5.1-0115545","Kétoldalon menetes, szorító- vagy roppantógyűrűs szerelvény elhelyezése, külső vagy belső menettel, illetve hollandival csatlakoztatva DN 32 szelepek, csappantyúk (szabályzó, fojtó-elzáró, beavatkozó) OVENTROP visszacsapó szelep, Viton tömítéssel, PN25, DN32, G 1 1/4\" bm., (0...+100)°C, nyitónyomás 40 mbar, kvs=17,00, vörösöntvény szelepházzal, 1072010",2,"db",0,0,0,0]
[22,"82-001-7.5.2-0130606","Kétoldalon menetes, szorító- vagy roppantógyűrűs szerelvény elhelyezése, külső vagy belső menettel, illetve hollandival csatlakoztatva DN 32 gömbcsap, víz- és gázfőcsap MOFÉM AHA gömbcsap 5/4\" bb. menettel, vízátbocsátás 330 l/min., névleges méret 32 mm, sárgaréz, natúr, 10 bar, Csz: 113-0051-00",17,"db",0,0,0,0]
[23,"82-001-7.5.3-0125787","Kétoldalon menetes, szorító- vagy roppantógyűrűs szerelvény elhelyezése, külső vagy belső menettel, illetve hollandival csatlakoztatva DN 32 szennyfogószűrő, gázszűrő, iszap- és levegőleválasztó ITAP Y-szűrő; 500 mikronos, 5/4\" méretben",1,"db",0,0,0,0]
[24,"82-001-7.5.3-0542487","Kétoldalon menetes, szorító- vagy roppantógyűrűs szerelvény elhelyezése, külső vagy belső menettel, illetve hollandival csatlakoztatva DN 32 szennyfogószűrő, gázszűrő, iszap- és levegőleválasztó Fernox TF1 Omega + Filter 5/4\" mágneses iszapleválasztó DN32",1,"db",0,0,0,0]
[25,"82-001-7.5.3-0723223","Kétoldalon menetes, szorító- vagy roppantógyűrűs szerelvény elhelyezése, külső vagy belső menettel, illetve hollandival csatlakoztatva DN 32 szennyfogószűrő, gázszűrő, iszap- és levegőleválasztó Flamco XStream Vent légleválasztó DN32, G1 1/4\"F, Rendelési szám: 11003",1,"db",0,0,0,0]
[26,"82-001-7.5.3-0723263","Kétoldalon menetes, szorító- vagy roppantógyűrűs szerelvény elhelyezése, külső vagy belső menettel, illetve hollandival csatlakoztatva DN 32 szennyfogószűrő, gázszűrő, iszap- és levegőleválasztó Flamco XStream Clean mágneses iszapleválasztó DN32, G1 1/4\"F, Rendelési szám: 11033",1,"db",0,0,0,0]
[27,"82-001-7.6.2-0130607","Kétoldalon menetes, szorító- vagy roppantógyűrűs szerelvény elhelyezése, külső vagy belső menettel, illetve hollandival csatlakoztatva DN 40 gömbcsap, víz- és gázfőcsap MOFÉM AHA gömbcsap 6/4\" bb. menettel, vízátbocsátás 590 l/min., névleges méret 40 mm, sárgaréz, natúr, 10 bar, Csz: 113-0052-00",1,"db",0,0,0,0]
[28,"82-001-7.7.2-0130608","Kétoldalon menetes, szorító- vagy roppantógyűrűs szerelvény elhelyezése, külső vagy belső menettel, illetve hollandival csatlakoztatva DN 50, DN 65 gömbcsap, víz- és gázfőcsap MOFÉM AHA gömbcsap 2\" bb. menettel, vízátbocsátás 890 l/min., névleges méret 50 mm, sárgaréz, natúr, 10 bar, Csz: 113-0053-00",2,"db",0,0,0,0]
[29,"82-001-13.6-0245247","Három- vagy négyoldalon (vagy hatoldalon) menetes vagy roppantógyűrűs szerelvény elhelyezése, külső vagy belső menettel, illetve hollandival csatlakoztatva, DN 50 ESBE VRG131 DN 50 háromjáratú váltószelep + 95-2 motor (120 sec; 15 Nm)",1,"db",0,0,0,0]
[30,"82-004-3.2.3-0126456","Közvetett fűtésű, álló vagy fekvő, beépített fűtő csőkígyóval vagy nélkül, tároló berendezés elhelyezése és bekötése, két fűtőkígyós kivitelben (szolár), 501-1200 l között Viessmann Vitocell 100-B CVBB; 950 literes HMV tároló 2 fűtőcsőkígyóval, kiegészítő hőmérővel, hőmérséklet érzékelővel",1,"db",0,0,0,0]
[31,"82-004-6.1.1.1-0444444","Zárt tágulási tartály elhelyezése és bekötése (nyomástartó-, gáztalanító és vízutántöltő  berendezések a 82-004-21-es tételtől), fűtési és hűtési rendszerekben, membrános, 2-80 liter között Reflex N25, 25 literes tágulási tartály",2,"db",0,0,0,0]
[32,"82-004-6.1.1.2-0222222","Zárt tágulási tartály elhelyezése és bekötése (nyomástartó-, gáztalanító és vízutántöltő  berendezések a 82-004-21-es tételtől), fűtési és hűtési rendszerekben, membrános, 81-400 liter között Reflex N140, 140 literes tágulási tartály",1,"db",0,0,0,0]
[33,"82-005-16.2-0120122","Manométer elhelyezése, lemezházas Manométer lemezházas, M 20 x 1,5 menettel 1,6 % pontossággal PM 1012 típus, átmérő 100 mm Méréshatár: 0-4.0;0-6.0;0-10;0-16;0-25 bar",3,"db",0,0,0,0]
[34,"82-005-17.1.1-0212006","Hőmérő elhelyezése, egyenes hőmérő, kicsi hőmérő, -30℃ - +10℃,",3,"db",0,0,0,0]
[35,"82-007-10.1.1-0555555","Lemezes hőcserélő elhelyezése és bekötése fűtési rendszerbe, fali vagy álló tartószerkezettel, 120 kW teljesítményig, menetes csatlakozással Hexonic lemezes hőcserélő elhelyezése, LB-50X-5/4\"; 4x5/4\"; 70kW",1,"db",0,0,0,0]
[36,"82-008-3.1.3.1.4-0585051","Fűtés-, klíma-, hűtéstechnika és HMV nedvestengelyű standard (átkapcsolható) szivattyúk elhelyezése és bekötése egyes szivattyúk (fűtésre) menetes kötéssel, DN 32 Grundfos Magna1 32-80 F 180 szivattyú",2,"db",0,0,0,0]
[37,"82-013-12-0324051","Elektronikus szabályozó készülék központifűtés és használati melegvíz hőmérsékletének szabályozására, felszerelve, elektromos bekötéssel, próbaüzemmel SIEMENS időjáráskövető fűtésszabályozó készlet, 1 fokozatú kazán, napkollektor (HMV,puffer), szilárd tüzelésű kazán, 1 keverőszelepes fűtési kör, 1 szivattyús kör, HMV, fűtés/hűtés, kaszkád (master/slave), 2 kiegészítő modul csatlakoztatható,multifunkcionális be/kimenet, a csomag tartalma: 1db RVS43.345B szabályozó, 1db AGP43.345B csatlakozó készlet, 1db QAA74.611/101 beltéri kezelő egység, 1db QAC34 külső hőmérséklet érzékelő, 1db QAD36 csőre szerelhető érzékelő, 2db QAZ36.522 kábel érzékelő, 1db 5SL6110-7 kismegszakító, 1db magyar nyelvű kezelési leírás, Csz.: Albatros2.1D",1,"db",0,0,0,0]
[38,"82-013-12-0324222","Elektronikus szabályozó készülék központifűtés és használati melegvíz hőmérsékletének szabályozására, felszerelve, elektromos bekötéssel, próbaüzemmel, kiegészítők, SIEMENS OCI365.03/101 LPB-OpenTherm átalakító",2,"db",0,0,0,0]
[39,"82-013-12-0324333","Elektronikus szabályozó készülék központifűtés és használati melegvíz hőmérsékletének szabályozására, felszerelve, elektromos bekötéssel, próbaüzemmel, kiegészítők, SIEMENS QAD2030  Temp.sensor clamp-on NTC10k",2,"db",0,0,0,0]
[40,"82-013-12-0324444","Elektronikus szabályozó készülék központifűtés és használati melegvíz hőmérsékletének szabályozására, felszerelve, elektromos bekötéssel, próbaüzemmel, kiegészítők, SIEMENS Merülőhüvely 1/2\", PN16, hossz: 150 mm, rozsdamentes acél ALT-SS150",2,"db",0,0,0,0]
[41,"82-013-12-0324555","Elektronikus szabályozó készülék központifűtés és használati melegvíz hőmérsékletének szabályozására, felszerelve, elektromos bekötéssel, próbaüzemmel, kiegészítők, SIEMENS Kétutú golyóscsap (L) DN50, kvs=37m3/h, belső menet VBI60.50-37L",1,"db",0,0,0,0]
[42,"82-013-12-0324666","Elektronikus szabályozó készülék központifűtés és használati melegvíz hőmérsékletének szabályozására, felszerelve, elektromos bekötéssel, próbaüzemmel, kiegészítők, SIEMENS Motor VAI6…/VBI6... és VAG6…/VBG6... csapokhoz, AC 230 V, 2- vagy 3-pont szabályozás, forgásirány váltó kapcsoló GLB341.9E",1,"db",0,0,0,0]
[null,null,"Fejezet összesen:",{"$nulls":4},{"$f":"ROUND(SUM(H2:H47),0)","v":0},{"$f":"ROUND(SUM(I2:I47),0)","v":0}]